[Event "Titled Tuesday Blitz March 22 Late 2022"]
[White "Sailer, Mike"]
[Black "Ladan, Nicholas"]
[WhiteFideId "2012901"]
[BlackFideId "30918855"]
[WhiteElo "2109"]
[BlackElo "2167"]
[Result "0-1"]
[Round "07"]
[TimeControl "180+1"]
[Date "2022.03.22"]
[WhiteClock "0:01:22"]
[BlackClock "0:01:32"]

1. d4 {[%clk 0:03:00]}  d5 {[%clk 0:02:55]} 2. Nf3 {[%clk 0:02:56]}  Nf6 {[%clk 0:02:55]} 3. Bf4 {[%clk 0:02:56]}  c5 {[%clk 0:02:54]} 4. e3 {[%clk 0:02:56]}  Nc6 {[%clk 0:02:55]} 5. Nc3 {[%clk 0:02:57]}  a6 {[%clk 0:02:52]} 6. Be2 {[%clk 0:02:56]}  Bg4 {[%clk 0:02:50]} 7. O-O {[%clk 0:02:55]}  e6 {[%clk 0:02:50]} 8. h3 {[%clk 0:02:55]}  Bh5 {[%clk 0:02:50]} 9. Ne5 {[%clk 0:02:53]}  Bxe2 {[%clk 0:02:49]} 10. Nxe2 {[%clk 0:02:54]}  Rc8 {[%clk 0:02:42]} 11. c3 {[%clk 0:02:52]}  Bd6 {[%clk 0:02:41]} 12. Nxc6 {[%clk 0:02:39]}  Rxc6 {[%clk 0:02:41]} 13. Bxd6 {[%clk 0:02:40]}  Qxd6 {[%clk 0:02:41]} 14. f4 {[%clk 0:02:40]}  Ne4 {[%clk 0:02:39]} 15. Nc1 {[%clk 0:02:36]}  c4 {[%clk 0:02:38]} 16. f5 {[%clk 0:02:26]}  Ng3 {[%clk 0:02:27]} 17. fxe6 {[%clk 0:02:25]}  Nxf1 {[%clk 0:02:26]} 18. exf7+ {[%clk 0:02:25]}  Kxf7 {[%clk 0:02:24]} 19. Qxf1+ {[%clk 0:02:26]}  Qf6 {[%clk 0:02:23]} 20. Qe2 {[%clk 0:02:16]}  Re8 {[%clk 0:02:20]} 21. Qh5+ {[%clk 0:02:04]}  Qg6 {[%clk 0:01:58]} 22. Qxd5+ {[%clk 0:02:02]}  Qe6 {[%clk 0:01:57]} 23. Qxe6+ {[%clk 0:01:39]}  Rcxe6 {[%clk 0:01:58]} 24. Ne2 {[%clk 0:01:39]}  Rxe3 {[%clk 0:01:57]} 25. Nf4 {[%clk 0:01:39]}  Re1+ {[%clk 0:01:54]} 26. Rxe1 {[%clk 0:01:39]}  Rxe1+ {[%clk 0:01:55]} 27. Kf2 {[%clk 0:01:40]}  Rb1 {[%clk 0:01:55]} 28. Nd5 {[%clk 0:01:38]}  Rxb2+ {[%clk 0:01:53]} 29. Kf3 {[%clk 0:01:39]}  Rxa2 {[%clk 0:01:53]} 30. Ne3 {[%clk 0:01:40]}  b5 {[%clk 0:01:52]} 31. Ke4 {[%clk 0:01:38]}  Re2 {[%clk 0:01:49]} 32. Kf3 {[%clk 0:01:36]}  Re1 {[%clk 0:01:39]} 33. Kf2 {[%clk 0:01:24]}  Rc1 {[%clk 0:01:38]} 34. Nd5 {[%clk 0:01:21]}  Ke6 {[%clk 0:01:34]} 35. Nc7+ {[%clk 0:01:21]}  Kd6 {[%clk 0:01:33]} 36. Nxa6 {[%clk 0:01:22]}  Rxc3 {[%clk 0:01:32]} 0-1


[Site "https://www.chess.com"]

[Event "Titled Tuesday Blitz March 22 Late 2022"]
[White "Sanchez Alvares, Kelvin Antonio"]
[Black "Zhukov, Maksim"]
[WhiteFideId "3906680"]
[BlackFideId "34181790"]
[WhiteElo "2193"]
[BlackElo "1978"]
[Result "0-1"]
[Round "07"]
[TimeControl "180+1"]
[Date "2022.03.22"]
[WhiteClock "0:00:18"]
[BlackClock "0:01:11"]

1. e4 {[%clk 0:03:00]}  d5 {[%clk 0:02:58]} 2. exd5 {[%clk 0:03:00]}  Nf6 {[%clk 0:02:59]} 3. d4 {[%clk 0:02:54]}  Nxd5 {[%clk 0:02:59]} 4. c4 {[%clk 0:02:53]}  Nb6 {[%clk 0:02:59]} 5. Nc3 {[%clk 0:02:51]}  e5 {[%clk 0:03:00]} 6. dxe5 {[%clk 0:02:49]}  Qxd1+ {[%clk 0:03:01]} 7. Nxd1 {[%clk 0:02:50]}  Nc6 {[%clk 0:03:01]} 8. f4 {[%clk 0:02:42]}  Be6 {[%clk 0:03:01]} 9. Ne3 {[%clk 0:02:41]}  O-O-O {[%clk 0:03:02]} 10. Bd2 {[%clk 0:02:38]}  Bc5 {[%clk 0:03:00]} 11. O-O-O {[%clk 0:02:30]}  Bxe3 {[%clk 0:03:00]} 12. Bxe3 {[%clk 0:02:30]}  Rxd1+ {[%clk 0:02:43]} 13. Kxd1 {[%clk 0:02:30]}  Rd8+ {[%clk 0:02:44]} 14. Kc1 {[%clk 0:02:30]}  Bxc4 {[%clk 0:02:44]} 15. Nf3 {[%clk 0:02:29]}  Bxa2 {[%clk 0:02:40]} 16. Be2 {[%clk 0:02:18]}  Nd5 {[%clk 0:02:36]} 17. Bd2 {[%clk 0:02:17]}  Ndb4 {[%clk 0:02:36]} 18. Ng5 {[%clk 0:01:54]}  h6 {[%clk 0:02:35]} 19. Ne4 {[%clk 0:01:54]}  Bd5 {[%clk 0:02:34]} 20. Bf3 {[%clk 0:01:54]}  Nd3+ {[%clk 0:02:33]} 21. Kc2 {[%clk 0:01:48]}  Ndb4+ {[%clk 0:02:33]} 22. Kc1 {[%clk 0:01:48]}  a5 {[%clk 0:02:24]} 23. Rf1 {[%clk 0:01:36]}  Nd4 {[%clk 0:02:24]} 24. Bxb4 {[%clk 0:01:31]}  axb4 {[%clk 0:02:24]} 25. Nd6+ {[%clk 0:01:26]}  cxd6 {[%clk 0:02:15]} 26. Bxd5 {[%clk 0:01:26]}  dxe5 {[%clk 0:02:15]} 27. Bxf7 {[%clk 0:01:26]}  exf4 {[%clk 0:02:16]} 28. Bh5 {[%clk 0:01:21]}  g5 {[%clk 0:02:15]} 29. Re1 {[%clk 0:01:20]}  Nf5 {[%clk 0:02:04]} 30. Bg4 {[%clk 0:01:12]}  Rd5 {[%clk 0:01:58]} 31. Re6 {[%clk 0:00:57]}  Kc7 {[%clk 0:01:56]} 32. Rf6 {[%clk 0:00:51]}  Ne3 {[%clk 0:01:53]} 33. Bf3 {[%clk 0:00:50]}  Rd6 {[%clk 0:01:52]} 34. Rf7+ {[%clk 0:00:50]}  Rd7 {[%clk 0:01:53]} 35. Rxd7+ {[%clk 0:00:50]}  Kxd7 {[%clk 0:01:53]} 36. Bxb7 {[%clk 0:00:51]}  Kd6 {[%clk 0:01:53]} 37. Kd2 {[%clk 0:00:49]}  Kc5 {[%clk 0:01:54]} 38. Kd3 {[%clk 0:00:48]}  Nc4 {[%clk 0:01:32]} 39. b3 {[%clk 0:00:44]}  Na5 {[%clk 0:01:32]} 40. Bc8 {[%clk 0:00:41]}  Nxb3 {[%clk 0:01:32]} 41. Be6 {[%clk 0:00:37]}  Nd4 {[%clk 0:01:32]} 42. Bf7 {[%clk 0:00:38]}  g4 {[%clk 0:01:27]} 43. Ke4 {[%clk 0:00:34]}  f3 {[%clk 0:01:26]} 44. gxf3 {[%clk 0:00:34]}  gxf3 {[%clk 0:01:26]} 45. Ke3 {[%clk 0:00:31]}  Nc6 {[%clk 0:01:12]} 46. Bh5 {[%clk 0:00:23]}  Ne5 {[%clk 0:01:12]} 47. Kf4 {[%clk 0:00:19]}  f2 {[%clk 0:01:12]} 48. Be2 {[%clk 0:00:18]}  b3 {[%clk 0:01:11]} 0-1


[Site "https://www.chess.com"]

[Event "Titled Tuesday Blitz March 22 Late 2022"]
[White "Sanchez, Robert"]
[Black "Cramling Bellon, Anna"]
[WhiteFideId "2034360"]
[BlackFideId "32009232"]
[WhiteElo "2243"]
[BlackElo "1905"]
[Result "1-0"]
[Round "07"]
[TimeControl "180+1"]
[Date "2022.03.22"]
[WhiteClock "0:00:17"]
[BlackClock "0:00:02"]

1. e4 {[%clk 0:03:00]}  c5 {[%clk 0:02:53]} 2. Nf3 {[%clk 0:03:01]}  e6 {[%clk 0:02:48]} 3. d4 {[%clk 0:03:00]}  cxd4 {[%clk 0:02:49]} 4. c3 {[%clk 0:03:00]}  dxc3 {[%clk 0:02:48]} 5. Nxc3 {[%clk 0:03:00]}  Nc6 {[%clk 0:02:45]} 6. Bc4 {[%clk 0:03:00]}  a6 {[%clk 0:02:30]} 7. O-O {[%clk 0:03:00]}  Qc7 {[%clk 0:02:28]} 8. Qe2 {[%clk 0:02:59]}  Nf6 {[%clk 0:02:04]} 9. e5 {[%clk 0:02:53]}  Ng4 {[%clk 0:02:04]} 10. Bf4 {[%clk 0:02:53]}  d5 {[%clk 0:01:49]} 11. Bd3 {[%clk 0:02:41]}  Be7 {[%clk 0:01:37]} 12. Rac1 {[%clk 0:02:39]}  h5 {[%clk 0:01:05]} 13. h3 {[%clk 0:02:36]}  Nh6 {[%clk 0:01:02]} 14. Bh2 {[%clk 0:02:36]}  O-O {[%clk 0:00:53]} 15. Bf4 {[%clk 0:02:32]}  f5 {[%clk 0:00:26]} 16. Bxh6 {[%clk 0:02:16]}  gxh6 {[%clk 0:00:27]} 17. Rfe1 {[%clk 0:02:06]}  Bd7 {[%clk 0:00:20]} 18. Na4 {[%clk 0:02:03]}  Be8 {[%clk 0:00:18]} 19. Nc5 {[%clk 0:02:00]}  Bxc5 {[%clk 0:00:17]} 20. Rxc5 {[%clk 0:02:01]}  Bg6 {[%clk 0:00:16]} 21. Nh4 {[%clk 0:01:48]}  Qg7 {[%clk 0:00:15]} 22. Nxg6 {[%clk 0:01:45]}  Qxg6 {[%clk 0:00:15]} 23. Rc3 {[%clk 0:01:35]}  Rac8 {[%clk 0:00:14]} 24. Qd1 {[%clk 0:01:26]}  Kh7 {[%clk 0:00:07]} 25. Be2 {[%clk 0:01:21]}  Rg8 {[%clk 0:00:06]} 26. Rg3 {[%clk 0:01:20]}  Qf7 {[%clk 0:00:05]} 27. Bxh5 {[%clk 0:01:20]}  Qe7 {[%clk 0:00:04]} 28. a3 {[%clk 0:01:00]}  Rxg3 {[%clk 0:00:03]} 29. fxg3 {[%clk 0:01:01]}  Rg8 {[%clk 0:00:04]} 30. Kh2 {[%clk 0:00:59]}  Qc5 {[%clk 0:00:04]} 31. Qd2 {[%clk 0:00:56]}  d4 {[%clk 0:00:02]} 32. b4 {[%clk 0:00:49]}  Qd5 {[%clk 0:00:02]} 33. Bf3 {[%clk 0:00:48]}  Qd7 {[%clk 0:00:02]} 34. Bxc6 {[%clk 0:00:49]}  bxc6 {[%clk 0:00:03]} 35. Qd3 {[%clk 0:00:47]}  Qd5 {[%clk 0:00:03]} 36. Rc1 {[%clk 0:00:41]}  Qxe5 {[%clk 0:00:03]} 37. Rxc6 {[%clk 0:00:41]}  h5 {[%clk 0:00:01]} 38. h4 {[%clk 0:00:38]}  Kh6 {[%clk 0:00:02]} 39. Rxa6 {[%clk 0:00:34]}  Rg6 {[%clk 0:00:02]} 40. Rc6 {[%clk 0:00:33]}  f4 {[%clk 0:00:02]} 41. Rc1 {[%clk 0:00:26]}  fxg3+ {[%clk 0:00:02]} 42. Kg1 {[%clk 0:00:25]}  Qe3+ {[%clk 0:00:02]} 43. Qxe3+ {[%clk 0:00:25]}  dxe3 {[%clk 0:00:02]} 44. Re1 {[%clk 0:00:24]}  e5 {[%clk 0:00:02]} 45. Rxe3 {[%clk 0:00:24]}  Rd6 {[%clk 0:00:02]} 46. Kf1 {[%clk 0:00:22]}  Rd1+ {[%clk 0:00:02]} 47. Ke2 {[%clk 0:00:23]}  Rd4 {[%clk 0:00:02]} 48. Kf3 {[%clk 0:00:22]}  Rxh4 {[%clk 0:00:02]} 49. Kxg3 {[%clk 0:00:22]}  Rg4+ {[%clk 0:00:03]} 50. Kf3 {[%clk 0:00:22]}  Rg5 {[%clk 0:00:01]} 51. a4 {[%clk 0:00:21]}  h4 {[%clk 0:00:02]} 52. a5 {[%clk 0:00:20]}  Rg3+ {[%clk 0:00:01]} 53. Kf2 {[%clk 0:00:21]}  Rg4 {[%clk 0:00:01]} 54. Rb3 {[%clk 0:00:20]}  Rc4 {[%clk 0:00:01]} 55. a6 {[%clk 0:00:20]}  Rc2+ {[%clk 0:00:01]} 56. Kf3 {[%clk 0:00:20]}  e4+ {[%clk 0:00:01]} 57. Kxe4 {[%clk 0:00:19]}  Rxg2 {[%clk 0:00:02]} 58. a7 {[%clk 0:00:20]}  Ra2 {[%clk 0:00:02]} 59. b5 {[%clk 0:00:19]}  Rxa7 {[%clk 0:00:02]} 60. b6 {[%clk 0:00:19]}  Rb7 {[%clk 0:00:03]} 61. Kf4 {[%clk 0:00:19]}  Kh5 {[%clk 0:00:03]} 62. Rb5+ {[%clk 0:00:19]}  Kg6 {[%clk 0:00:03]} 63. Ke5 {[%clk 0:00:18]}  Kg5 {[%clk 0:00:03]} 64. Kd6+ {[%clk 0:00:17]}  Kg4 {[%clk 0:00:03]} 65. Rb4+ {[%clk 0:00:17]}  Kg3 {[%clk 0:00:02]} 66. Rb3+ {[%clk 0:00:18]}  Kg2 {[%clk 0:00:02]} 67. Rb2+ {[%clk 0:00:18]}  Kg3 {[%clk 0:00:02]} 68. Rb3+ {[%clk 0:00:18]}  Kg2 {[%clk 0:00:03]} 69. Rb1 {[%clk 0:00:17]}  h3 {[%clk 0:00:03]} 70. Kc6 {[%clk 0:00:17]}  Rf7 {[%clk 0:00:02]} 71. b7 {[%clk 0:00:16]}  Rxb7 {[%clk 0:00:02]} 72. Kxb7 {[%clk 0:00:17]} 1-0


[Site "https://www.chess.com"]

[Event "Titled Tuesday Blitz March 22 Late 2022"]
[White "Sapunov, Evgeny"]
[Black "Pinheiro, Iung Alicio de O."]
[WhiteFideId "4126661"]
[BlackFideId "2104350"]
[WhiteElo "2470"]
[BlackElo "2535"]
[Result "0-1"]
[Round "07"]
[TimeControl "180+1"]
[Date "2022.03.22"]
[WhiteClock "0:00:10"]
[BlackClock "0:00:25"]

1. c4 {[%clk 0:03:00]}  c5 {[%clk 0:02:59]} 2. Nf3 {[%clk 0:03:01]}  g6 {[%clk 0:02:58]} 3. d4 {[%clk 0:03:00]}  cxd4 {[%clk 0:02:58]} 4. Nxd4 {[%clk 0:03:01]}  Nc6 {[%clk 0:02:58]} 5. Nc2 {[%clk 0:03:01]}  Nf6 {[%clk 0:02:57]} 6. Nc3 {[%clk 0:03:01]}  Bg7 {[%clk 0:02:56]} 7. e4 {[%clk 0:02:59]}  d6 {[%clk 0:02:55]} 8. Be2 {[%clk 0:03:00]}  Nd7 {[%clk 0:02:53]} 9. Bd2 {[%clk 0:02:59]}  O-O {[%clk 0:02:48]} 10. O-O {[%clk 0:02:59]}  Nc5 {[%clk 0:02:46]} 11. f3 {[%clk 0:02:41]}  a5 {[%clk 0:02:38]} 12. Kh1 {[%clk 0:02:38]}  f5 {[%clk 0:02:31]} 13. exf5 {[%clk 0:02:36]}  Bxf5 {[%clk 0:02:31]} 14. Ne3 {[%clk 0:02:35]}  Bd7 {[%clk 0:02:25]} 15. Rc1 {[%clk 0:02:26]}  Nd4 {[%clk 0:02:11]} 16. Re1 {[%clk 0:02:25]}  e6 {[%clk 0:02:05]} 17. Bf1 {[%clk 0:02:24]}  Qh4 {[%clk 0:02:01]} 18. Ng4 {[%clk 0:01:47]}  Bc6 {[%clk 0:01:52]} 19. Re3 {[%clk 0:01:23]}  h5 {[%clk 0:01:40]} 20. Be1 {[%clk 0:01:16]}  Qxg4 {[%clk 0:01:27]} 21. Bg3 {[%clk 0:00:59]}  Qg5 {[%clk 0:01:13]} 22. Qe1 {[%clk 0:00:55]}  Nf5 {[%clk 0:01:03]} 23. f4 {[%clk 0:00:56]}  Qf6 {[%clk 0:00:57]} 24. Rd1 {[%clk 0:00:44]}  Nxe3 {[%clk 0:00:50]} 25. Qxe3 {[%clk 0:00:45]}  Rad8 {[%clk 0:00:44]} 26. h3 {[%clk 0:00:42]}  b6 {[%clk 0:00:42]} 27. Be2 {[%clk 0:00:35]}  Qf5 {[%clk 0:00:41]} 28. Bh2 {[%clk 0:00:27]}  d5 {[%clk 0:00:39]} 29. Nb5 {[%clk 0:00:10]}  d4 {[%clk 0:00:35]} 30. Nxd4 {[%clk 0:00:10]}  Bxd4 {[%clk 0:00:29]} 31. Rxd4 {[%clk 0:00:10]}  Rxd4 {[%clk 0:00:29]} 32. Qxd4 {[%clk 0:00:10]}  Qxh3 {[%clk 0:00:29]} 33. Qf2 {[%clk 0:00:08]}  Ne4 {[%clk 0:00:27]} 34. Qf3 {[%clk 0:00:07]}  Qf5 {[%clk 0:00:21]} 35. Qe3 {[%clk 0:00:06]}  Rd8 {[%clk 0:00:20]} 36. Bf3 {[%clk 0:00:06]}  Ba8 {[%clk 0:00:17]} 37. b3 {[%clk 0:00:06]}  Nc5 {[%clk 0:00:16]} 38. Be2 {[%clk 0:00:06]}  Be4 {[%clk 0:00:15]} 39. Bg1 {[%clk 0:00:05]}  Qf6 {[%clk 0:00:15]} 40. Bf2 {[%clk 0:00:05]}  Qf5 {[%clk 0:00:15]} 41. Kh2 {[%clk 0:00:05]}  Bd3 {[%clk 0:00:15]} 42. Bf3 {[%clk 0:00:05]}  Be4 {[%clk 0:00:15]} 43. Be2 {[%clk 0:00:05]}  Nd3 {[%clk 0:00:16]} 44. Bh4 {[%clk 0:00:05]}  Qxf4+ {[%clk 0:00:15]} 45. Qxf4 {[%clk 0:00:05]}  Nxf4 {[%clk 0:00:16]} 46. Bf1 {[%clk 0:00:05]}  Rd1 {[%clk 0:00:16]} 47. Kg1 {[%clk 0:00:05]}  Bd3 {[%clk 0:00:15]} 48. Kf2 {[%clk 0:00:06]}  Rxf1+ {[%clk 0:00:16]} 49. Ke3 {[%clk 0:00:06]}  Ra1 {[%clk 0:00:17]} 50. Bg3 {[%clk 0:00:06]}  Rxa2 {[%clk 0:00:18]} 51. Bxf4 {[%clk 0:00:06]}  Bc2 {[%clk 0:00:18]} 52. g3 {[%clk 0:00:06]}  Bxb3 {[%clk 0:00:19]} 53. Kd4 {[%clk 0:00:07]}  Ra4 {[%clk 0:00:19]} 54. Ke5 {[%clk 0:00:07]}  Rxc4 {[%clk 0:00:20]} 55. Kf6 {[%clk 0:00:08]}  Rxf4+ {[%clk 0:00:20]} 56. gxf4 {[%clk 0:00:08]}  h4 {[%clk 0:00:21]} 57. Kg5 {[%clk 0:00:07]}  h3 {[%clk 0:00:22]} 58. Kf6 {[%clk 0:00:08]}  h2 {[%clk 0:00:22]} 59. Ke7 {[%clk 0:00:09]}  h1=Q {[%clk 0:00:23]} 60. Kf6 {[%clk 0:00:09]}  e5 {[%clk 0:00:23]} 61. Kxe5 {[%clk 0:00:09]}  Qd5+ {[%clk 0:00:24]} 62. Kf6 {[%clk 0:00:10]}  Qf7+ {[%clk 0:00:24]} 63. Kg5 {[%clk 0:00:10]}  Qf5+ {[%clk 0:00:24]} 64. Kh6 {[%clk 0:00:10]}  Qh5# {[%clk 0:00:25]} 0-1


[Site "https://www.chess.com"]

[Event "Titled Tuesday Blitz March 22 Late 2022"]
[White "Sarana, Alexey"]
[Black "Yoo, Christopher Woojin"]
[WhiteFideId "24133795"]
[BlackFideId "30909694"]
[WhiteElo "2666"]
[BlackElo "2105"]
[Result "1-0"]
[Round "07"]
[TimeControl "180+1"]
[Date "2022.03.22"]
[WhiteClock "0:00:09"]
[BlackClock "0:00:01"]

1. d4 {[%clk 0:03:00]}  Nf6 {[%clk 0:02:59]} 2. c4 {[%clk 0:03:01]}  e6 {[%clk 0:03:00]} 3. Nc3 {[%clk 0:03:01]}  Bb4 {[%clk 0:02:59]} 4. Qc2 {[%clk 0:03:02]}  c5 {[%clk 0:02:56]} 5. dxc5 {[%clk 0:02:59]}  O-O {[%clk 0:02:57]} 6. a3 {[%clk 0:02:52]}  Bxc5 {[%clk 0:02:56]} 7. Nf3 {[%clk 0:02:53]}  d5 {[%clk 0:02:56]} 8. Bg5 {[%clk 0:02:50]}  Be7 {[%clk 0:02:55]} 9. Rd1 {[%clk 0:02:49]}  Nc6 {[%clk 0:02:54]} 10. e3 {[%clk 0:02:49]}  Qa5 {[%clk 0:02:53]} 11. Be2 {[%clk 0:02:39]}  dxc4 {[%clk 0:02:53]} 12. Bxc4 {[%clk 0:02:38]}  Ne5 {[%clk 0:02:53]} 13. Nxe5 {[%clk 0:02:37]}  Qxe5 {[%clk 0:02:54]} 14. Bf4 {[%clk 0:02:38]}  Qc5 {[%clk 0:02:54]} 15. Bd3 {[%clk 0:02:38]}  b6 {[%clk 0:02:47]} 16. O-O {[%clk 0:02:30]}  Bb7 {[%clk 0:02:47]} 17. b4 {[%clk 0:02:25]}  Qc6 {[%clk 0:02:17]} 18. e4 {[%clk 0:02:05]}  h6 {[%clk 0:01:29]} 19. Rc1 {[%clk 0:01:56]}  Rad8 {[%clk 0:01:03]} 20. Qb1 {[%clk 0:01:49]}  Qe8 {[%clk 0:00:35]} 21. Bb5 {[%clk 0:01:48]}  Nd7 {[%clk 0:00:34]} 22. Rfd1 {[%clk 0:01:30]}  a6 {[%clk 0:00:34]} 23. Ba4 {[%clk 0:00:56]}  b5 {[%clk 0:00:19]} 24. Nxb5 {[%clk 0:00:56]}  axb5 {[%clk 0:00:19]} 25. Bxb5 {[%clk 0:00:57]}  f5 {[%clk 0:00:18]} 26. Bc7 {[%clk 0:00:55]}  Bxe4 {[%clk 0:00:12]} 27. Qb3 {[%clk 0:00:54]}  Qg6 {[%clk 0:00:13]} 28. f3 {[%clk 0:00:53]}  Bd5 {[%clk 0:00:11]} 29. Rxd5 {[%clk 0:00:50]}  exd5 {[%clk 0:00:12]} 30. Qxd5+ {[%clk 0:00:51]}  Qf7 {[%clk 0:00:09]} 31. Qc6 {[%clk 0:00:34]}  Kh7 {[%clk 0:00:04]} 32. Bxd8 {[%clk 0:00:19]}  Rxd8 {[%clk 0:00:04]} 33. Qc7 {[%clk 0:00:19]}  Nf6 {[%clk 0:00:03]} 34. Re1 {[%clk 0:00:19]}  Rd5 {[%clk 0:00:01]} 35. Bc4 {[%clk 0:00:18]}  Qg6 {[%clk 0:00:01]} 36. Qxe7 {[%clk 0:00:14]}  Rd2 {[%clk 0:00:01]} 37. Bf1 {[%clk 0:00:14]}  Nd5 {[%clk 0:00:01]} 38. Qe5 {[%clk 0:00:14]}  Qb6+ {[%clk 0:00:01]} 39. Kh1 {[%clk 0:00:14]}  Qg6 {[%clk 0:00:01]} 40. Qg3 {[%clk 0:00:10]}  Qf6 {[%clk 0:00:01]} 41. Qe5 {[%clk 0:00:10]}  Qg6 {[%clk 0:00:01]} 42. b5 {[%clk 0:00:10]}  h5 {[%clk 0:00:02]} 43. a4 {[%clk 0:00:10]}  h4 {[%clk 0:00:02]} 44. a5 {[%clk 0:00:10]}  h3 {[%clk 0:00:02]} 45. gxh3 {[%clk 0:00:09]}  Nf6 {[%clk 0:00:02]} 46. Qg3 {[%clk 0:00:09]}  Qh6 {[%clk 0:00:01]} 47. h4 {[%clk 0:00:09]}  Nh5 {[%clk 0:00:01]} 48. Qg5 {[%clk 0:00:09]} 1-0


[Site "https://www.chess.com"]

[Event "Titled Tuesday Blitz March 22 Late 2022"]
[White "Spata, German"]
[Black "Papasimakopoulos, Alexandros"]
[WhiteFideId "113026"]
[BlackFideId "4244125"]
[WhiteElo "2238"]
[BlackElo "2340"]
[Result "0-1"]
[Round "07"]
[TimeControl "180+1"]
[Date "2022.03.22"]
[WhiteClock "0:00:23"]
[BlackClock "0:00:44"]

1. Nf3 {[%clk 0:02:57]}  f5 {[%clk 0:02:57]} 2. g3 {[%clk 0:02:55]}  Nf6 {[%clk 0:02:54]} 3. Bg2 {[%clk 0:02:55]}  g6 {[%clk 0:02:55]} 4. O-O {[%clk 0:02:55]}  Bg7 {[%clk 0:02:55]} 5. c4 {[%clk 0:02:54]}  O-O {[%clk 0:02:54]} 6. Nc3 {[%clk 0:02:54]}  d6 {[%clk 0:02:51]} 7. d4 {[%clk 0:02:54]}  e6 {[%clk 0:02:51]} 8. Re1 {[%clk 0:02:53]}  Ne4 {[%clk 0:02:50]} 9. Qc2 {[%clk 0:02:52]}  Nxc3 {[%clk 0:02:49]} 10. bxc3 {[%clk 0:02:52]}  Nc6 {[%clk 0:02:49]} 11. e4 {[%clk 0:02:47]}  e5 {[%clk 0:02:50]} 12. dxe5 {[%clk 0:02:38]}  dxe5 {[%clk 0:02:49]} 13. Ba3 {[%clk 0:02:33]}  Re8 {[%clk 0:02:47]} 14. Rad1 {[%clk 0:02:28]}  Qf6 {[%clk 0:02:47]} 15. exf5 {[%clk 0:02:02]}  gxf5 {[%clk 0:02:39]} 16. Nd2 {[%clk 0:01:36]}  e4 {[%clk 0:02:36]} 17. Bb2 {[%clk 0:01:11]}  Ne5 {[%clk 0:02:33]} 18. c5 {[%clk 0:01:02]}  Be6 {[%clk 0:02:18]} 19. Nb3 {[%clk 0:00:57]}  Nd3 {[%clk 0:02:14]} 20. Nd4 {[%clk 0:00:55]}  Nxe1 {[%clk 0:02:09]} 21. Rxe1 {[%clk 0:00:56]}  Bc4 {[%clk 0:02:02]} 22. Qa4 {[%clk 0:00:47]}  Bd3 {[%clk 0:01:47]} 23. Bh3 {[%clk 0:00:47]}  f4 {[%clk 0:01:45]} 24. Qb3+ {[%clk 0:00:41]}  Kh8 {[%clk 0:01:42]} 25. Ne6 {[%clk 0:00:40]}  fxg3 {[%clk 0:01:37]} 26. hxg3 {[%clk 0:00:40]}  Rf8 {[%clk 0:01:14]} 27. Nf4 {[%clk 0:00:29]}  b6 {[%clk 0:01:00]} 28. Ba1 {[%clk 0:00:27]}  Qf7 {[%clk 0:00:48]} 29. c4 {[%clk 0:00:25]}  Bxa1 {[%clk 0:00:46]} 30. Rxa1 {[%clk 0:00:23]}  Qg7 {[%clk 0:00:44]} 0-1


[Site "https://www.chess.com"]

[Event "Titled Tuesday Blitz March 22 Late 2022"]
[White "Stanisz, Patryk"]
[Black "Petrova, Irina"]
[WhiteFideId "1123106"]
[BlackFideId "14124122"]
[WhiteElo "1876"]
[BlackElo "1993"]
[Result "0-1"]
[Round "07"]
[TimeControl "180+1"]
[Date "2022.03.22"]
[WhiteClock "0:00:04"]
[BlackClock "0:00:40"]

1. Nf3 {[%clk 0:03:00]}  d6 {[%clk 0:03:00]} 2. c4 {[%clk 0:03:01]}  e5 {[%clk 0:03:00]} 3. e3 {[%clk 0:02:59]}  f5 {[%clk 0:02:57]} 4. b3 {[%clk 0:02:54]}  Nf6 {[%clk 0:02:56]} 5. Bb2 {[%clk 0:02:54]}  g6 {[%clk 0:02:56]} 6. d4 {[%clk 0:02:53]}  e4 {[%clk 0:02:56]} 7. Nfd2 {[%clk 0:02:53]}  Bg7 {[%clk 0:02:56]} 8. Nc3 {[%clk 0:02:54]}  O-O {[%clk 0:02:55]} 9. Be2 {[%clk 0:02:53]}  c6 {[%clk 0:02:53]} 10. Qc2 {[%clk 0:02:48]}  Na6 {[%clk 0:02:52]} 11. a3 {[%clk 0:02:47]}  Nc7 {[%clk 0:02:51]} 12. h3 {[%clk 0:02:43]}  Be6 {[%clk 0:02:49]} 13. b4 {[%clk 0:02:41]}  a5 {[%clk 0:02:34]} 14. b5 {[%clk 0:02:24]}  cxb5 {[%clk 0:02:32]} 15. Nxb5 {[%clk 0:02:13]}  Nxb5 {[%clk 0:02:32]} 16. cxb5 {[%clk 0:02:14]}  Rc8 {[%clk 0:02:31]} 17. Qa4 {[%clk 0:01:58]}  Kh8 {[%clk 0:02:26]} 18. O-O {[%clk 0:01:54]}  g5 {[%clk 0:02:21]} 19. Rac1 {[%clk 0:01:50]}  Rxc1 {[%clk 0:02:17]} 20. Rxc1 {[%clk 0:01:49]}  f4 {[%clk 0:02:15]} 21. Nc4 {[%clk 0:00:46]}  f3 {[%clk 0:02:06]} 22. Bf1 {[%clk 0:00:34]}  fxg2 {[%clk 0:01:56]} 23. Bxg2 {[%clk 0:00:35]}  g4 {[%clk 0:01:56]} 24. h4 {[%clk 0:00:20]}  Nd5 {[%clk 0:01:43]} 25. Nd2 {[%clk 0:00:14]}  Qxh4 {[%clk 0:01:38]} 26. Nxe4 {[%clk 0:00:14]}  Nf6 {[%clk 0:01:18]} 27. Ng3 {[%clk 0:00:14]}  Nh5 {[%clk 0:01:11]} 28. Nxh5 {[%clk 0:00:15]}  Qxh5 {[%clk 0:01:12]} 29. Qxa5 {[%clk 0:00:14]}  g3 {[%clk 0:01:04]} 30. fxg3 {[%clk 0:00:10]}  Qe2 {[%clk 0:00:58]} 31. Qc3 {[%clk 0:00:09]}  Qf2+ {[%clk 0:00:55]} 32. Kh2 {[%clk 0:00:02]}  Rf6 {[%clk 0:00:40]} 33. Qc8+ {[%clk 0:00:02]}  Bxc8 {[%clk 0:00:40]} 34. Rxc8+ {[%clk 0:00:03]}  Rf8 {[%clk 0:00:40]} 35. Rxf8+ {[%clk 0:00:03]}  Qxf8 {[%clk 0:00:40]} 36. d5 {[%clk 0:00:04]}  Bxb2 {[%clk 0:00:40]} 0-1


[Site "https://www.chess.com"]